Workbook

Sheet Pasiūlymas
A2: PIRKIMO SĄLYGŲ PRIEDAS "PASIŪLYMŲ FORMA"
A4: MEDIKAMENTŲ PIRKIMAS
A6: Kam: | B6: VšĮ LSMU Kauno ligoninė
A8: Data: | B8: 2022-11-22
A9: Nr.: | B9: 22/11/22
A10: Vieta: | B10: Klonėnų vs.1, Šrivintų r. sav., 19156
A12: Tiekėjo pavadinimas / Ūkio subjektų grupės nariai: | C12: UAB Entafarma
A13: Tiekėjo kodas (-ai): | C13: 174443844
A14: Tiekėjo adresas (-ai): | C14: Klonėnų vs.1, Šrivintų r. sav., 19156
A15: Tiekėjo PVM mokėtojo kodas(-ai): | C15: LT744438415
A16: Tiekėjo / Ūkio subjektų grupės atsakingo partnerio sąskaitos numeris, banko pavadinimas ir banko kodas (-ai): | C16: AB "Swedbank" bankas, b.k. kodas 73000, A/s LT79 7300 0101 6149 4031
A17: Asmens atsakingo už pasiūlymą vardas, pavardė: | C17: Aurimas Kirkliauskas
A18: Asmens atsakingo už pasiūlymą telefono numeris, el. pašto adresas: | C18: 8-618 82684, aurimas.kirkliauskas@entafarma.lt
A19: Tiekėjo / Ūkio subjektų grupės, laimėjimo atveju, pasirašančio sutartį asmens vardas, pavardė, pareigos: | C19: Aurimas Kirkliauskas, konkursų skyriaus vadovas
A20: Tiekėjo / Ūkio subjektų grupės, laimėjimo atveju, už sutarties vykdymą atsakingo asmens vardas, pavardė, telefono numeris, elektroninio pašto adresas: | C20: Agnė Andrijauskienė, 8-612 49288, ligonines@entafarma.lt
A21: (1) Tiekėjo / Ūkio subjektų grupės narių, (2) ūkio subjektų, kurių pajėgumais remiamasi, ir (3) jei pašalinimo pagrindai taikomi visiems subtiekėjams - subtiekėjų, kolegialaus priežiūros organo (Stebėtojų tarybos) ir (ar) kolegialaus valdymo organo (Valdybos) narių sąrašas (jei sudaryta) ir (ar) asmuo, kuriam suteikti VPĮ 46 str. 2 d. 2 p. numatyti įgaliojimai | G21: =IF((SUMPRODUCT(--(C21=""))>0), "Privaloma užpildyti, kai taikomi pašalinimo pagrindai", "") -> Privaloma užpildyti, kai taikomi pašalinimo pagrindai
A23: Tiekėjo patvirtinimai:
A24: 1. Šiuo pasiūlymu pažymime, kad sutinkame su visomi pirkimo sąlygomis, nustatytomis:
A25: 1.1. viešojo pirkimo dokumentuose
A26: 1.2. kituose pirkimo dokumentuose (jų paaiškinimuose, papildymuose).
A27: 2. Patvirtiname, kad informacija ir duomenys, pateikti pasiūlyme, yra teisingi ir apima viską, ko reikia tinkamam sutarties įvykdymui
A28: 3. Patvirtiname, kad jei pasiūlyme nenurodyti kolegialaus priežiūros/valdymo organų nariai, šie organai juridiniuose asmenyse nėra sudaryti (taikoma, kai pirkimo dokumentuose nustatyti pašalinimo pagrindai).
A29: 4. Pasiūlymas galioja iki termino, nustatyto pirkimo dokumentuose.
A30: 5. Tais atvejais, kai pagal galiojančius teisės aktus tiekėjui nereikia mokėti PVM, jis nurodo priežastis, dėl kurių PVM nemoka:
A34: 6. DALIS | B34: AKTYVINTA ANGLIS 200 MG
A36: Tiekėjo pasiūlymas:
A37: Nr. | B37: Pavadinimas | C37: Kiekis | D37: Mato vienetas | E37: Įkainis be PVM, Eur | F37: Suma be PVM, Eur | G37: Siūlomo produkto pavadinimas, dozė, kiekis pakuotėje, gamintojas. Būtina pažymėti, kuris vaistas yra vardinis
A38: 6. | B38: Aktyvinta anglis 200 mg
A39: 6.1. | B39: Aktyvinta anglis 200 mg | C39: 1500 | D39: tab./kaps. | E39: 0.055 | F39: =IF(ISBLANK(E39),"", PRODUCT(C39,E39)) -> 82.5 | G39: Carbovit 250mg tab. N100, Dossmegt (Vardinis)
E40: Suma be PVM | F40: =IF(F39="","",SUM(F39:F39)) -> 82.5 | G40: =IF(F39="","Neužpildytos visos objektų kainos","") -> 
E41: PVM suma | F41: 4.125
E42: Suma su PVM | F42: =IF(ISBLANK(F41), "", SUM(F40:F41)) -> 86.625
A48: 8. DALIS | B48: AMFOTERICINAS B LIPOSOMINIS 50MG
A50: Tiekėjo pasiūlymas:
A51: Nr. | B51: Pavadinimas | C51: Kiekis | D51: Mato vienetas | E51: Įkainis be PVM, Eur | F51: Suma be PVM, Eur | G51: Siūlomo produkto pavadinimas, dozė, kiekis pakuotėje, gamintojas. Būtina pažymėti, kuris vaistas yra vardinis
A52: 8. | B52: Amfotericinas B liposominis 50mg
A53: 8.1. | B53: Amfotericinas B liposominis 50mg | C53: 20 | D53: amp. | E53: 112 | F53: =IF(ISBLANK(E53),"", PRODUCT(C53,E53)) -> 2240 | G53: Ambilon (Liposomal Amphotericin) 50mg inj. N1, Celon Lab [Vardinis]
E54: Suma be PVM | F54: =IF(F53="","",SUM(F53:F53)) -> 2240 | G54: =IF(F53="","Neužpildytos visos objektų kainos","") -> 
E55: PVM suma | F55: 112
E56: Suma su PVM | F56: =IF(ISBLANK(F55), "", SUM(F54:F55)) -> 2352
A61: 11. DALIS | B61: ASKORBO RŪGŠTIS 50MG/ML
A63: Tiekėjo pasiūlymas:
A64: Nr. | B64: Pavadinimas | C64: Kiekis | D64: Mato vienetas | E64: Įkainis be PVM, Eur | F64: Suma be PVM, Eur | G64: Siūlomo produkto pavadinimas, dozė, kiekis pakuotėje, gamintojas. Būtina pažymėti, kuris vaistas yra vardinis
A65: 11. | B65: Askorbo rūgštis 50mg/ml
A66: 11.1. | B66: Askorbo rūgštis 50mg/ml | C66: 2500 | D66: amp. | E66: 0.47 | F66: =IF(ISBLANK(E66),"", PRODUCT(C66,E66)) -> 1175 | G66: Askorbo rûgðtis Sopharma 50mg/ml injekcinis tirpalas 2ml N10, Sopharma
E67: Suma be PVM | F67: =IF(F66="","",SUM(F66:F66)) -> 1175 | G67: =IF(F66="","Neužpildytos visos objektų kainos","") -> 
E68: PVM suma | F68: 58.75
E69: Suma su PVM | F69: =IF(ISBLANK(F68), "", SUM(F67:F68)) -> 1233.75
A73: 24. DALIS | B73: CINKO OKSIDO TEPALAS 100MG/G
A75: Tiekėjo pasiūlymas:
A76: Nr. | B76: Pavadinimas | C76: Kiekis | D76: Mato vienetas | E76: Įkainis be PVM, Eur | F76: Suma be PVM, Eur | G76: Siūlomo produkto pavadinimas, dozė, kiekis pakuotėje, gamintojas. Būtina pažymėti, kuris vaistas yra vardinis
A77: 24. | B77: Cinko oksido tepalas 100mg/g
A78: 24.1. | B78: Cinko oksido tepalas 100mg/g | C78: 1200 | D78: g | E78: 0.03 | F78: =IF(ISBLANK(E78),"", PRODUCT(C78,E78)) -> 36 | G78: Tena Zinc Cream cinko tepalas 100ml N1, Essity
E79: Suma be PVM | F79: =IF(F78="","",SUM(F78:F78)) -> 36 | G79: =IF(F78="","Neužpildytos visos objektų kainos","") -> 
E80: PVM suma | F80: 1.8
E81: Suma su PVM | F81: =IF(ISBLANK(F80), "", SUM(F79:F80)) -> 37.8
A85: 34. DALIS | B85: DOXEPINAS 25 MG
A87: Tiekėjo pasiūlymas:
A88: Nr. | B88: Pavadinimas | C88: Kiekis | D88: Mato vienetas | E88: Įkainis be PVM, Eur | F88: Suma be PVM, Eur | G88: Siūlomo produkto pavadinimas, dozė, kiekis pakuotėje, gamintojas. Būtina pažymėti, kuris vaistas yra vardinis
A89: 34. | B89: Doxepinas 25 mg
A90: 34.1. | B90: Doxepinas 25 mg | C90: 210 | D90: kaps./tab. | E90: 0.98 | F90: =IF(ISBLANK(E90),"", PRODUCT(C90,E90)) -> 205.8 | G90: Doxepin 25mg kapsulės N50, Pliva Krakow (Vardinis)
E91: Suma be PVM | F91: =IF(F90="","",SUM(F90:F90)) -> 205.8 | G91: =IF(F90="","Neužpildytos visos objektų kainos","") -> 
E92: PVM suma | F92: 10.29
E93: Suma su PVM | F93: =IF(ISBLANK(F92), "", SUM(F91:F92)) -> 216.09
A95: 39. DALIS | B95: FENILEFRINAS 10% AKIŲ LAŠAI
A97: Tiekėjo pasiūlymas:
A98: Nr. | B98: Pavadinimas | C98: Kiekis | D98: Mato vienetas | E98: Įkainis be PVM, Eur | F98: Suma be PVM, Eur | G98: Siūlomo produkto pavadinimas, dozė, kiekis pakuotėje, gamintojas. Būtina pažymėti, kuris vaistas yra vardinis
A99: 39. | B99: Fenilefrinas 10% akių lašai
A100: 39.1. | B100: Fenilefrinas 10% akių lašai | C100: 150 | D100: ml. | E100: 2.54 | F100: =IF(ISBLANK(E100),"", PRODUCT(C100,E100)) -> 381 | G100: Fenefrin 10% akių lašai 10ml N1, Unimed Pharma (Vardinis)
E101: Suma be PVM | F101: =IF(F100="","",SUM(F100:F100)) -> 381 | G101: =IF(F100="","Neužpildytos visos objektų kainos","") -> 
E102: PVM suma | F102: 19.05
E103: Suma su PVM | F103: =IF(ISBLANK(F102), "", SUM(F101:F102)) -> 400.05
A106: 49. DALIS | B106: HIDROCORTISONI 100 MG INJ/INF TIPALUI RUOŠTI
A108: Tiekėjo pasiūlymas:
A109: Nr. | B109: Pavadinimas | C109: Kiekis | D109: Mato vienetas | E109: Įkainis be PVM, Eur | F109: Suma be PVM, Eur | G109: Siūlomo produkto pavadinimas, dozė, kiekis pakuotėje, gamintojas. Būtina pažymėti, kuris vaistas yra vardinis
A110: 49. | B110: Hidrocortisoni 100 mg inj/inf tipalui ruošti
A111: 49.1. | B111: Hidrocortisoni 100 mg inj/inf tipalui ruošti | C111: 50 | D111: amp. | E111: 1.18 | F111: =IF(ISBLANK(E111),"", PRODUCT(C111,E111)) -> 59 | G111: Bitacort 100mg inj/inf N1, Lucid Pharmaceuticals [Vardinis]
E112: Suma be PVM | F112: =IF(F111="","",SUM(F111:F111)) -> 59 | G112: =IF(F111="","Neužpildytos visos objektų kainos","") -> 
E113: PVM suma | F113: 2.95
E114: Suma su PVM | F114: =IF(ISBLANK(F113), "", SUM(F112:F113)) -> 61.95
A118: 65. DALIS | B118: LORAZEPAM 4MG/ML INJ
A120: Tiekėjo pasiūlymas:
A121: Nr. | B121: Pavadinimas | C121: Kiekis | D121: Mato vienetas | E121: Įkainis be PVM, Eur | F121: Suma be PVM, Eur | G121: Siūlomo produkto pavadinimas, dozė, kiekis pakuotėje, gamintojas. Būtina pažymėti, kuris vaistas yra vardinis
A122: 65. | B122: Lorazepam 4mg/ml inj
A123: 65.1. | B123: Lorazepam 4mg/ml inj | C123: 1600 | D123: amp. | E123: 4.77 | F123: =IF(ISBLANK(E123),"", PRODUCT(C123,E123)) -> 7632 | G123: LIREZID 4mg/ml injekcinis tirpalas N10, Medochemie
E124: Suma be PVM | F124: =IF(F123="","",SUM(F123:F123)) -> 7632 | G124: =IF(F123="","Neužpildytos visos objektų kainos","") -> 
E125: PVM suma | F125: 381.6
E126: Suma su PVM | F126: =IF(ISBLANK(F125), "", SUM(F124:F125)) -> 8013.6
A129: 69. DALIS | B129: MENTOLIO TIRPALAS IZOVALERIJONO RŪGŠTIES METILO ESTERYJE 60MG
A131: Tiekėjo pasiūlymas:
A132: Nr. | B132: Pavadinimas | C132: Kiekis | D132: Mato vienetas | E132: Įkainis be PVM, Eur | F132: Suma be PVM, Eur | G132: Siūlomo produkto pavadinimas, dozė, kiekis pakuotėje, gamintojas. Būtina pažymėti, kuris vaistas yra vardinis
A133: 69. | B133: Mentolio tirpalas izovalerijono rūgšties metilo esteryje 60mg
A134: 69.1. | B134: Mentolio tirpalas izovalerijono rūgšties metilo esteryje 60mg | C134: 1200 | D134: tab. | E134: 0.03 | F134: =IF(ISBLANK(E134),"", PRODUCT(C134,E134)) -> 36 | G134: Validol MED tabletės N20, Latvija
E135: Suma be PVM | F135: =IF(F134="","",SUM(F134:F134)) -> 36 | G135: =IF(F134="","Neužpildytos visos objektų kainos","") -> 
E136: PVM suma | F136: 1.8
E137: Suma su PVM | F137: =IF(ISBLANK(F136), "", SUM(F135:F136)) -> 37.8
A142: 83. DALIS | B142: NATRIO NITROPRUSIDAS 30 MG MILTELIAI IR TIRPIKLIS INFUZINIAM TIRPALUI
A144: Tiekėjo pasiūlymas:
A145: Nr. | B145: Pavadinimas | C145: Kiekis | D145: Mato vienetas | E145: Įkainis be PVM, Eur | F145: Suma be PVM, Eur | G145: Siūlomo produkto pavadinimas, dozė, kiekis pakuotėje, gamintojas. Būtina pažymėti, kuris vaistas yra vardinis
A146: 83. | B146: Natrio nitroprusidas 30 mg milteliai ir tirpiklis infuziniam tirpalui
A147: 83.1. | B147: Natrio nitroprusidas 30 mg milteliai ir tirpiklis infuziniam tirpalui | C147: 40 | D147: fl. | E147: 6.55 | F147: =IF(ISBLANK(E147),"", PRODUCT(C147,E147)) -> 262 | G147: Nipress 50mg in amp. N1, Samarth [Vardinis]
E148: Suma be PVM | F148: =IF(F147="","",SUM(F147:F147)) -> 262 | G148: =IF(F147="","Neužpildytos visos objektų kainos","") -> 
E149: PVM suma | F149: 13.1
E150: Suma su PVM | F150: =IF(ISBLANK(F149), "", SUM(F148:F149)) -> 275.1
A154: 100. DALIS | B154: SOTALOLUM 80 MG
A156: Tiekėjo pasiūlymas:
A157: Nr. | B157: Pavadinimas | C157: Kiekis | D157: Mato vienetas | E157: Įkainis be PVM, Eur | F157: Suma be PVM, Eur | G157: Siūlomo produkto pavadinimas, dozė, kiekis pakuotėje, gamintojas. Būtina pažymėti, kuris vaistas yra vardinis
A158: 100. | B158: Sotalolum 80 mg
A159: 100.1. | B159: Sotalolum 80 mg | C159: 100 | D159: tab. | E159: 1.66 | F159: =IF(ISBLANK(E159),"", PRODUCT(C159,E159)) -> 166 | G159: Sotahexal 80mg tabletės N100, Hexal [Vardinis]
E160: Suma be PVM | F160: =IF(F159="","",SUM(F159:F159)) -> 166 | G160: =IF(F159="","Neužpildytos visos objektų kainos","") -> 
E161: PVM suma | F161: 8.3
E162: Suma su PVM | F162: =IF(ISBLANK(F161), "", SUM(F160:F161)) -> 174.3
A165: 105. DALIS | B165: TIRPALAS NEIGIAMAI ALERGENŲ KONTROLEI 2,5 ML ±0,5ML
A167: Tiekėjo pasiūlymas:
A168: Nr. | B168: Pavadinimas | C168: Kiekis | D168: Mato vienetas | E168: Įkainis be PVM, Eur | F168: Suma be PVM, Eur | G168: Siūlomo produkto pavadinimas, dozė, kiekis pakuotėje, gamintojas. Būtina pažymėti, kuris vaistas yra vardinis
A169: 105. | B169: Tirpalas neigiamai alergenų kontrolei 2,5 ml ±0,5ml
A170: 105.1. | B170: Tirpalas neigiamai alergenų kontrolei 2,5 ml ±0,5ml | C170: 2 | D170: fl. | E170: 28 | F170: =IF(ISBLANK(E170),"", PRODUCT(C170,E170)) -> 56 | G170: Skin Prick Test bottle x 2,5ml + 0,5ml N1 (K100), Inmunotek [Vardinis]
E171: Suma be PVM | F171: =IF(F170="","",SUM(F170:F170)) -> 56 | G171: =IF(F170="","Neužpildytos visos objektų kainos","") -> 
E172: PVM suma | F172: 2.8
E173: Suma su PVM | F173: =IF(ISBLANK(F172), "", SUM(F171:F172)) -> 58.8
A177: 106. DALIS | B177: TIRPALAS ODOS DŪRIMO TESTUI 3ML ± 0,5ML – FENOLINIS GLICEROLIS
A179: Tiekėjo pasiūlymas:
A180: Nr. | B180: Pavadinimas | C180: Kiekis | D180: Mato vienetas | E180: Įkainis be PVM, Eur | F180: Suma be PVM, Eur | G180: Siūlomo produkto pavadinimas, dozė, kiekis pakuotėje, gamintojas. Būtina pažymėti, kuris vaistas yra vardinis
A181: 106. | B181: Tirpalas odos dūrimo testui 3ml ± 0,5ml – Fenolinis glicerolis
A182: 106.1. | B182: Tirpalas odos dūrimo testui 3ml ± 0,5ml – Fenolinis glicerolis | C182: 2 | D182: fl. | E182: 28 | F182: =IF(ISBLANK(E182),"", PRODUCT(C182,E182)) -> 56 | G182: Skin Prick Test bottle x 2,5ml + 0,5ml N1 (K200), Inmunotek [Vardinis]
E183: Suma be PVM | F183: =IF(F182="","",SUM(F182:F182)) -> 56 | G183: =IF(F182="","Neužpildytos visos objektų kainos","") -> 
E184: PVM suma | F184: 2.8
E185: Suma su PVM | F185: =IF(ISBLANK(F184), "", SUM(F183:F184)) -> 58.8
A189: 123. DALIS | B189: TIRPALAS ODOS DŪRIMO TESTUI 3ML ±0,5ML – DERM PTERONYSSINUS (NAMŲ ERKĖ)
A191: Tiekėjo pasiūlymas:
A192: Nr. | B192: Pavadinimas | C192: Kiekis | D192: Mato vienetas | E192: Įkainis be PVM, Eur | F192: Suma be PVM, Eur | G192: Siūlomo produkto pavadinimas, dozė, kiekis pakuotėje, gamintojas. Būtina pažymėti, kuris vaistas yra vardinis
A193: 123. | B193: Tirpalas odos dūrimo testui 3ml ±0,5ml – Derm Pteronyssinus (namų erkė)
A194: 123.1. | B194: Tirpalas odos dūrimo testui 3ml ±0,5ml – Derm Pteronyssinus (namų erkė) | C194: 2 | D194: fl. | E194: 28 | F194: =IF(ISBLANK(E194),"", PRODUCT(C194,E194)) -> 56 | G194: Skin Prick Test bottle x 2,5ml + 0,5ml N1 (M601), Inmunotek [Vardinis]
E195: Suma be PVM | F195: =IF(F194="","",SUM(F194:F194)) -> 56 | G195: =IF(F194="","Neužpildytos visos objektų kainos","") -> 
E196: PVM suma | F196: 2.8
E197: Suma su PVM | F197: =IF(ISBLANK(F196), "", SUM(F195:F196)) -> 58.8
A201: 124. DALIS | B201: TIRPALAS ODOS DŪRIMO TESTUI 3ML ±0,5ML – DERM. FARINAE (NAMŲ ERKĖ)
A203: Tiekėjo pasiūlymas:
A204: Nr. | B204: Pavadinimas | C204: Kiekis | D204: Mato vienetas | E204: Įkainis be PVM, Eur | F204: Suma be PVM, Eur | G204: Siūlomo produkto pavadinimas, dozė, kiekis pakuotėje, gamintojas. Būtina pažymėti, kuris vaistas yra vardinis
A205: 124. | B205: Tirpalas odos dūrimo testui 3ml ±0,5ml – Derm. Farinae (namų erkė)
A206: 124.1. | B206: Tirpalas odos dūrimo testui 3ml ±0,5ml – Derm. Farinae (namų erkė) | C206: 2 | D206: fl. | E206: 28 | F206: =IF(ISBLANK(E206),"", PRODUCT(C206,E206)) -> 56 | G206: Skin Prick Test bottle x 2,5ml + 0,5ml N1 (M602), Inmunotek [Vardinis]
E207: Suma be PVM | F207: =IF(F206="","",SUM(F206:F206)) -> 56 | G207: =IF(F206="","Neužpildytos visos objektų kainos","") -> 
E208: PVM suma | F208: 2.8
E209: Suma su PVM | F209: =IF(ISBLANK(F208), "", SUM(F207:F208)) -> 58.8
A213: 131. DALIS | B213: TORAZEMIDAS 5 MG/ML 4 ML
A215: Tiekėjo pasiūlymas:
A216: Nr. | B216: Pavadinimas | C216: Kiekis | D216: Mato vienetas | E216: Įkainis be PVM, Eur | F216: Suma be PVM, Eur | G216: Siūlomo produkto pavadinimas, dozė, kiekis pakuotėje, gamintojas. Būtina pažymėti, kuris vaistas yra vardinis
A217: 131. | B217: Torazemidas 5 mg/ml 4 ml
A218: 131.1. | B218: Torazemidas 5 mg/ml 4 ml | C218: 200 | D218: amp. | E218: 1.008 | F218: =IF(ISBLANK(E218),"", PRODUCT(C218,E218)) -> 201.6 | G218: Trifas 20mg/4ml inj.N5, Berlin Chemie
E219: Suma be PVM | F219: =IF(F218="","",SUM(F218:F218)) -> 201.6 | G219: =IF(F218="","Neužpildytos visos objektų kainos","") -> 
E220: PVM suma | F220: 10.08
E221: Suma su PVM | F221: =IF(ISBLANK(F220), "", SUM(F219:F220)) -> 211.68
A225: 132. DALIS | B225: TRANEKSAMO RŪGŠTIS 100 MG/ML INJEKCINIS TIRPALAS 5 ML
A227: Tiekėjo pasiūlymas:
A228: Nr. | B228: Pavadinimas | C228: Kiekis | D228: Mato vienetas | E228: Įkainis be PVM, Eur | F228: Suma be PVM, Eur | G228: Siūlomo produkto pavadinimas, dozė, kiekis pakuotėje, gamintojas. Būtina pažymėti, kuris vaistas yra vardinis
A229: 132. | B229: Traneksamo rūgštis 100 mg/ml injekcinis tirpalas 5 ml
A230: 132.1. | B230: Traneksamo rūgštis 100 mg/ml injekcinis tirpalas 5 ml | C230: 2500 | D230: amp. | E230: 0.77 | F230: =IF(ISBLANK(E230),"", PRODUCT(C230,E230)) -> 1925 | G230: Tranexamsaure Eberth 100mg/ml inj./inf. tirpalas 5ml amp. N10, Niromed
E231: Suma be PVM | F231: =IF(F230="","",SUM(F230:F230)) -> 1925 | G231: =IF(F230="","Neužpildytos visos objektų kainos","") -> 
E232: PVM suma | F232: 96.25
E233: Suma su PVM | F233: =IF(ISBLANK(F232), "", SUM(F231:F232)) -> 2021.25

Sheet Subtiekėjai ir priedai
A2: Ūkio subjektai (įskaitant kvazisubtiekėjus - fiziniai asmenys, kuriuos ketinama įdarbinti pirkimo laimėjimo atveju), kurių pajėgumais tiekėjas remiasi, kad atitiktų keliamus kvalifikacijos reikalavimus:
A5: Pavadinimas* | C5: Kodas, adresas | F5: Perduodami įsipareigojimai | I5: Perduodamų įsipareigojimų dalis nuo visos pirkimo sutarties (Eur arba %) | K5: Kval. Reikalavimo Nr.
A10: Subtiekėjams / subteikėjams / subrangovams numatomos perduoti veiklos (privaloma nurodyti) ir šių ūkio subjektų pavadinimai (jei žinomi):
A12: Pavadinimas | C12: Kodas, adresas | F12: Perduodama veikla* | I12: Perduodamos veiklos dalis nuo visos pirkimo sutarties (Eur arba %)
A19: Kartu su pasiūlymu pateikiami šie dokumentai:
A21: Nr. | B21: Dokumento pavadinimas | H21: Dokumentas yra konfidencialus? Taip/Ne
A22: 1 | B22: Jungtinės veiklos kopija (jei taikoma)
A23: 2 | B23: Europos bendrasis viešųjų pirkimų dokumentas | H23: 14
A24: 3 | B24: Subtiekimo sutartis, ketinimų protokolas, preliminarios sutartys ar kiti dokumentai, patvirtinantys, kad laimėjus pirkimą tiekėjui bus prieinami kitų ūkio subjektų ištekliai (jei pasitelkiami kvalifikacijos atitikimui)
A30: Pasiūlyme nurodyta Prekės kaina, išskyrus jos sudedamąsias dalis, subtiekėjai, taip pat kita informacija, kuri teisės aktų nustatyta tvarka turi būti skelbiama arba kitokiu būdu viešai prieinama visuomenei, nėra laikoma konfidencialia informacija. Konfidencialią informaciją sudaro, visų pirma, komercinė (gamybinė) paslaptis ir konfidencialieji pasiūlymų aspektai. Informacija, kurią viešai skelbti įpareigoja Lietuvos Respublikos įstatymai, negali būti tiekėjo nurodoma kaip konfidenciali, todėl, tiekėjui nurodžius tokią informaciją kaip konfidencialią, perkančioji organizacija turi teisę ją skelbti. Jei tiekėjas nenurodo konfidencialios informacijos, laikoma, kad konfidencialios informacijos tiekėjo pasiūlyme nėra. Vadovaujantis Informacijos viešinimo Centrinėje viešųjų pirkimų informacinėje sistemoje tvarkos aprašu, patvirtintu Viešųjų pirkimų tarnybos direktoriaus 2017 m. birželio 19 d. įsakymu Nr. 1S-91 „Dėl Informacijos viešinimo Centrinėje viešųjų pirkimų informacinėje sistemoje tvarkos aprašo patvirtinimo“, perkančioji organizacija laimėjusio dalyvio pasiūlymą, išskyrus informaciją, kurią tiekėjas nurodė kaip konfidencialią, paskelbs CVP IS.
A33: Tiekėjo arba jo įgalioto asmens pareigų pavadinimas: | E33: Konkursų skyriaus vadovas
A35: Pasirašančio asmens vardas ir pavardė: | E35: Aurimas Kirkliauskas
A82: 6874-3 2022-10-14 10:13:51
